[Event "Fall IM Norm Invitational 2020"]
[Site "Charlotte"]
[Date "2020.10.01"]
[Round "2.3"]
[White "Velikanov, Alexander"]
[Black "Francisco, Richard"]
[Result "1-0"]
[ECO "B70"]
[WhiteElo "2274"]
[BlackElo "2303"]
[Annotator "ChessBase"]
[PlyCount "85"]
[EventDate "2020.09.30"]
[EventType "tourn"]
[EventCountry "USA"]
[SourceTitle "playchess.com"]
[Source "ChessBase"]
[SourceQuality "1"]
[TimeControl "5400+30"]

1. Nf3 {[%emt 1:30:30]} c5 {[%emt 1:30:30]} 2. e4 {[%emt 0:00:30]} Nc6 {[%emt 0:00:30]} 3. Nc3 {[%emt 0:00:30]} g6 {[%emt 0:00:30]} 4. d4 {[%emt 0:00:30]} cxd4 {[%emt 0:00:30]} 5. Nxd4 {[%emt 0:00:30]} Bg7 {[%emt 0:00:30]} 6. Nde2 {[%emt 0:00:30]} b6 {[%emt 0:00:30]} 7. g3 {[%emt 0:00:30]} Ba6 {[%emt 0:00:30]} 8. Bg2 {[%emt 0:00:30]} Rc8 {[%emt 0:00:30]} 9. h3 {[%emt 0:00:30]} Nf6 {[%emt 0:00:30]} 10. O-O {[%emt 0:00:30]} O-O {[%emt 0:00:30]} 11. Re1 {[%emt 0:00:30]} d6 {[%emt 0:00:30]} 12. Bg5 {[%emt 0:00:30]} h6 {[%emt 0:00:30]} 13. Be3 {[%emt 0:00:30]} Nd7 {[%emt 0:00:30]} 14. Qd2 {[%emt 0:00:30]} Bxe2 {[%emt 0:00:30]} 15. Nxe2 {[%emt 0:00:30]} Bxb2 {[%emt 0:00:30]} 16. Rab1 {[%emt 0:00:30]} Bg7 {[%emt 0:00:30]} 17. Bxh6 {[%emt 0:00:30]} Na5 {[%emt 0:00:30]} 18. Bxg7 {[%emt 0:00:30]} Kxg7 {[%emt 0:00:30]} 19. Nd4 {[%emt 0:00:30]} Nf6 {[%emt 0:00:30]} 20. h4 {[%emt 0:00:30]} Nc4 {[%emt 0:00:30]} 21. Qe2 {[%emt 0:00:30]} e5 {[%emt 0:00:30]} 22. Nb5 {[%emt 0:00:30]} a6 {[%emt 0:00:30]} 23. Nc3 {[%emt 0:00:30]} b5 {[%emt 0:00:30]} 24. Nd1 {[%emt 0:00:30]} Qa5 {[%emt 0:00:30]} 25. c3 {[%emt 0:00:30]} Nb6 {[%emt 0:00:30]} 26. Rc1 {[%emt 0:00:30]} Qa3 {[%emt 0:00:30]} 27. Rc2 {[%emt 0:00:30]} Rc6 {[%emt 0:00:30]} 28. Bf3 {[%emt 0:00:30]} Rfc8 {[%emt 0:00:30]} 29. h5 {[%emt 0:00:30]} Na4 {[%emt 0:00:30]} 30. Kg2 {[%emt 0:00:30]} Nxc3 {[%emt 0:00:30]} 31. Qe3 {[%emt 0:00:30]} Qb4 {[%emt 0:00:30]} 32. a3 {[%emt 0:00:30]} Qa5 {[%emt 0:00:30]} 33. Qd2 {[%emt 0:00:30]} Qc7 {[%emt 0:00:30]} 34. hxg6 {[%emt 0:00:30]} fxg6 {[%emt 0:00:30]} 35. Nxc3 {[%emt 0:00:30]} Rxc3 {[%emt 0:00:30]} 36. Rxc3 {[%emt 0:00:30]} Qxc3 {[%emt 0:00:30]} 37. Qxd6 {[%emt 0:00:30]} Qxe1 {[%emt 0:00:30]} 38. Qe7+ {[%emt 0:00:30]} Kh6 {[%emt 0:00:30]} 39. Qxf6 {[%emt 0:00:30]} Qc3 {[%emt 0:00:30]} 40. Bg4 {[%emt 0:00:30]} Re8 {[%emt 0:00:30]} 41. Bf5 {[%emt 0:00:30]} Rg8 {[%emt 0:00:30]} 42. Bxg6 {[%emt 0:00:30]} Rf8 {[%emt 0:00:30]} 43. Bf7+ {[%emt 0:00:30]} 1-0

[Event "Fall IM Norm Invitational 2020"]
[Site "Charlotte"]
[Date "2020.10.01"]
[Round "2.4"]
[White "Matros, Alexander"]
[Black "Krykun, Yuriy"]
[Result "1/2-1/2"]
[ECO "C26"]
[WhiteElo "2417"]
[BlackElo "2371"]
[Annotator "ChessBase"]
[PlyCount "100"]
[EventDate "2020.09.30"]
[EventType "tourn"]
[EventCountry "USA"]
[SourceTitle "playchess.com"]
[Source "ChessBase"]
[SourceQuality "1"]
[TimeControl "5400+30"]

1. e4 {[%emt 1:30:30]} e5 {[%emt 1:30:30]} 2. Nc3 {[%emt 0:00:30]} Nf6 {[%emt 0:00:30]} 3. a3 {[%emt 0:00:30]} Be7 {[%emt 0:00:30]} 4. d4 {[%emt 0:00:30]} d6 {[%emt 0:00:30]} 5. dxe5 {[%emt 0:00:30]} dxe5 {[%emt 0:00:30]} 6. Qxd8+ {[%emt 0:00:30]} Bxd8 {[%emt 0:00:30]} 7. Nf3 {[%emt 0:00:30]} Nbd7 {[%emt 0:00:30]} 8. Be3 {[%emt 0:00:30]} c6 {[%emt 0:00:30]} 9. h3 {[%emt 0:00:30]} Bb6 {[%emt 0:00:30]} 10. Bd3 {[%emt 0:00:30]} Bxe3 {[%emt 0:00:30]} 11. fxe3 {[%emt 0:00:30]} Ke7 {[%emt 0:00:30]} 12. Ke2 {[%emt 0:00:30]} Ne8 {[%emt 0:00:30]} 13. b4 {[%emt 0:00:30]} Nd6 {[%emt 0:00:30]} 14. Nb1 {[%emt 0:00:30]} f6 {[%emt 0:00:30]} 15. c4 {[%emt 0:00:30]} b6 {[%emt 0:00:30]} 16. Nc3 {[%emt 0:00:30]} Bb7 {[%emt 0:00:30]} 17. Nd2 {[%emt 0:00:30]} Rhc8 {[%emt 0:00:30]} 18. Rhb1 {[%emt 0:00:30]} c5 {[%emt 0:00:30]} 19. b5 {[%emt 0:00:30]} a6 {[%emt 0:00:30]} 20. a4 {[%emt 0:00:30]} axb5 {[%emt 0:00:30]} 21. axb5 {[%emt 0:00:30]} Rxa1 {[%emt 0:00:30]} 22. Rxa1 {[%emt 0:00:30]} Ra8 {[%emt 0:00:30]} 23. Rxa8 {[%emt 0:00:30]} Bxa8 {[%emt 0:00:30]} 24. g4 {[%emt 0:00:30]} Nf8 {[%emt 0:00:30]} 25. Na4 {[%emt 0:00:30]} Nc8 {[%emt 0:00:30]} 26. Kf2 {[%emt 0:00:30]} Kd6 {[%emt 0:00:30]} 27. Kg3 {[%emt 0:00:30]} Kc7 {[%emt 0:00:30]} 28. h4 {[%emt 0:00:30]} Nd6 {[%emt 0:00:30]} 29. Nc3 {[%emt 0:00:30]} Ne6 {[%emt 0:00:30]} 30. Bf1 {[%emt 0:00:30]} h6 {[%emt 0:00:30]} 31. Bh3 {[%emt 0:00:30]} g5 {[%emt 0:00:30]} 32. h5 {[%emt 0:00:30]} Nd8 {[%emt 0:00:30]} 33. Bf1 {[%emt 0:00:30]} N8f7 {[%emt 0:00:30]} 34. Bd3 {[%emt 0:00:30]} Nc8 {[%emt 0:00:30]} 35. Kf2 {[%emt 0:00:30]} Ne7 {[%emt 0:00:30]} 36. Kg3 {[%emt 0:00:30]} Nd6 {[%emt 0:00:30]} 37. Kf2 {[%emt 0:00:30]} Bb7 {[%emt 0:00:30]} 38. Kg3 {[%emt 0:00:30]} Bc8 {[%emt 0:00:30]} 39. Kf3 {[%emt 0:00:30]} Be6 {[%emt 0:00:30]} 40. Bf1 {[%emt 0:00:30]} Nec8 {[%emt 0:00:30]} 41. Bd3 {[%emt 0:00:30]} Nb7 {[%emt 0:00:30]} 42. Nd5+ {[%emt 0:00:30]} Bxd5 {[%emt 0:00:30]} 43. exd5 {[%emt 0:00:30]} Ncd6 {[%emt 0:00:30]} 44. e4 {[%emt 0:00:30]} Na5 {[%emt 0:00:30]} 45. Ke3 {[%emt 0:00:30]} Ne8 {[%emt 0:00:30]} 46. Be2 {[%emt 0:00:30]} Kd7 {[%emt 0:00:30]} 47. Bd3 {[%emt 0:00:30]} Ke7 {[%emt 0:00:30]} 48. Be2 {[%emt 0:00:30]} Nd6 {[%emt 0:00:30]} 49. Bd3 {[%emt 0:00:30]} Kf7 {[%emt 0:00:30]} 50. Be2 {[%emt 0:00:30]} Ke7 {[%emt 0:00:30]} 1/2-1/2

[Event "Fall IM Norm Invitational 2020"]
[Site "Charlotte"]
[Date "2020.10.01"]
[Round "2.5"]
[White "Andrianov, Nikolay"]
[Black "Vivekananthan, Anish"]
[Result "1/2-1/2"]
[ECO "A14"]
[WhiteElo "1816"]
[BlackElo "2239"]
[Annotator "ChessBase"]
[PlyCount "71"]
[EventDate "2020.09.30"]
[EventType "tourn"]
[EventCountry "USA"]
[SourceTitle "playchess.com"]
[Source "ChessBase"]
[SourceQuality "1"]
[TimeControl "5400+30"]

1. Nf3 {[%emt 1:30:30]} Nf6 {[%emt 1:30:30]} 2. b3 {[%emt 0:00:30]} e6 {[%emt 0:00:30]} 3. Bb2 {[%emt 0:00:30]} Be7 {[%emt 0:00:30]} 4. g3 {[%emt 0:00:30]} b6 {[%emt 0:00:30]} 5. Bg2 {[%emt 0:00:30]} Bb7 {[%emt 0:00:30]} 6. O-O {[%emt 0:00:30]} O-O {[%emt 0:00:30]} 7. c4 {[%emt 0:00:30]} c5 {[%emt 0:00:30]} 8. e3 {[%emt 0:00:30]} d5 {[%emt 0:00:30]} 9. Qe2 {[%emt 0:00:30]} Nc6 {[%emt 0:00:30]} 10. Nc3 {[%emt 0:00:30]} Rc8 {[%emt 0:00:30]} 11. d3 {[%emt 0:00:30]} Re8 {[%emt 0:00:30]} 12. Rfd1 {[%emt 0:00:30]} Ba6 {[%emt 0:00:30]} 13. Rac1 {[%emt 0:00:30]} Bf8 {[%emt 0:00:30]} 14. Ne1 {[%emt 0:00:30]} Qd7 {[%emt 0:00:30]} 15. a4 {[%emt 0:00:30]} Bb7 {[%emt 0:00:30]} 16. f4 {[%emt 0:00:30]} Na5 {[%emt 0:00:30]} 17. Qc2 {[%emt 0:00:30]} Ng4 {[%emt 0:00:30]} 18. Qe2 {[%emt 0:00:30]} Nxe3 {[%emt 0:00:30]} 19. Qxe3 {[%emt 0:00:30]} d4 {[%emt 0:00:30]} 20. Qf2 {[%emt 0:00:30]} Bxg2 {[%emt 0:00:30]} 21. Kxg2 {[%emt 0:00:30]} dxc3 {[%emt 0:00:30]} 22. Rxc3 {[%emt 0:00:30]} Be7 {[%emt 0:00:30]} 23. d4 {[%emt 0:00:30]} cxd4 {[%emt 0:00:30]} 24. Rcd3 {[%emt 0:00:30]} Bc5 {[%emt 0:00:30]} 25. Nf3 {[%emt 0:00:30]} Nc6 {[%emt 0:00:30]} 26. Bxd4 {[%emt 0:00:30]} Nxd4 {[%emt 0:00:30]} 27. Nxd4 {[%emt 0:00:30]} Qe7 {[%emt 0:00:30]} 28. Qf3 {[%emt 0:00:30]} Bxd4 {[%emt 0:00:30]} 29. Rxd4 {[%emt 0:00:30]} Rc7 {[%emt 0:00:30]} 30. Qd3 {[%emt 0:00:30]} g6 {[%emt 0:00:30]} 31. Rd8 {[%emt 0:00:30]} h5 {[%emt 0:00:30]} 32. Qd6 {[%emt 0:00:30]} Rxd8 {[%emt 0:00:30]} 33. Qxe7 {[%emt 0:00:30]} Rxe7 {[%emt 0:00:30]} 34. Rxd8+ {[%emt 0:00:30]} Kg7 {[%emt 0:00:30]} 35. Kf3 {[%emt 0:00:30]} Rc7 {[%emt 0:00:30]} 36. Ke4 {[%emt 0:00:30]} 1/2-1/2

[Event "Fall IM Norm Invitational 2020"]
[Site "Charlotte"]
[Date "2020.10.02"]
[Round "3.1"]
[White "Krykun, Yuriy"]
[Black "Stearman, Josiah"]
[Result "1/2-1/2"]
[ECO "D10"]
[WhiteElo "2371"]
[BlackElo "2354"]
[Annotator "ChessBase"]
[PlyCount "161"]
[EventDate "2020.09.30"]
[EventType "tourn"]
[EventCountry "USA"]
[SourceTitle "playchess.com"]
[Source "ChessBase"]
[SourceQuality "1"]
[TimeControl "5400+30"]

1. c4 {[%emt 1:30:30]} c6 {[%emt 1:30:30]} 2. d4 {[%emt 0:00:30]} d5 {[%emt 0:00:30]} 3. cxd5 {[%emt 0:00:30]} cxd5 {[%emt 0:00:30]} 4. Bf4 {[%emt 0:00:30]} Nc6 {[%emt 0:00:30]} 5. e3 {[%emt 0:00:30]} Nf6 {[%emt 0:00:30]} 6. Nc3 {[%emt 0:00:30]} Bg4 {[%emt 0:00:30]} 7. Qb3 {[%emt 0:00:30]} Na5 {[%emt 0:00:30]} 8. Qa4+ {[%emt 0:00:30]} Bd7 {[%emt 0:00:30]} 9. Qc2 {[%emt 0:00:30]} Rc8 {[%emt 0:00:30]} 10. Bd3 {[%emt 0:00:30]} e6 {[%emt 0:00:30]} 11. Nf3 {[%emt 0:00:30]} Be7 {[%emt 0:00:30]} 12. O-O {[%emt 0:00:30]} O-O {[%emt 0:00:30]} 13. Ne5 {[%emt 0:00:30]} h6 {[%emt 0:00:30]} 14. Qe2 {[%emt 0:00:30]} Qb6 {[%emt 0:00:30]} 15. Rac1 {[%emt 0:00:30]} a6 {[%emt 0:00:30]} 16. Rc2 {[%emt 0:00:30]} Nc6 {[%emt 0:00:30]} 17. a3 {[%emt 0:00:30]} Rfd8 {[%emt 0:00:30]} 18. Nxd7 {[%emt 0:00:30]} Nxd7 {[%emt 0:00:30]} 19. b4 {[%emt 0:00:30]} Qa7 {[%emt 0:00:30]} 20. Na4 {[%emt 0:00:30]} b5 {[%emt 0:00:30]} 21. Nc5 {[%emt 0:00:30]} Bxc5 {[%emt 0:00:30]} 22. bxc5 {[%emt 0:00:30]} e5 {[%emt 0:00:30]} 23. dxe5 {[%emt 0:00:30]} Ncxe5 {[%emt 0:00:30]} 24. Rfc1 {[%emt 0:00:30]} Nc4 {[%emt 0:00:30]} 25. Qg4 {[%emt 0:00:30]} Rc6 {[%emt 0:00:30]} 26. Qf5 {[%emt 0:00:30]} Nf6 {[%emt 0:00:30]} 27. Bxc4 {[%emt 0:00:30]} dxc4 {[%emt 0:00:30]} 28. Bd6 {[%emt 0:00:30]} Qd7 {[%emt 0:00:30]} 29. Qf3 {[%emt 0:00:30]} Ne8 {[%emt 0:00:30]} 30. Be5 {[%emt 0:00:30]} Rxc5 {[%emt 0:00:30]} 31. Bd4 {[%emt 0:00:30]} Rc6 {[%emt 0:00:30]} 32. a4 {[%emt 0:00:30]} Nc7 {[%emt 0:00:30]} 33. axb5 {[%emt 0:00:30]} axb5 {[%emt 0:00:30]} 34. Rb1 {[%emt 0:00:30]} Ne6 {[%emt 0:00:30]} 35. Rxb5 {[%emt 0:00:30]} Nxd4 {[%emt 0:00:30]} 36. exd4 {[%emt 0:00:30]} Rf6 {[%emt 0:00:30]} 37. Qh5 {[%emt 0:00:30]} g6 {[%emt 0:00:30]} 38. Qc5 {[%emt 0:00:30]} Rc6 {[%emt 0:00:30]} 39. Qb4 {[%emt 0:00:30]} Qxd4 {[%emt 0:00:30]} 40. Qe1 {[%emt 0:00:30]} c3 {[%emt 0:00:30]} 41. Rb1 {[%emt 0:00:30]} Re6 {[%emt 0:00:30]} 42. Qf1 {[%emt 0:00:30]} Kg7 {[%emt 0:00:30]} 43. Rbc1 {[%emt 0:00:30]} Rc8 {[%emt 0:00:30]} 44. g3 {[%emt 0:00:30]} Rc5 {[%emt 0:00:30]} 45. Qd1 {[%emt 0:00:30]} Qf6 {[%emt 0:00:30]} 46. Qd3 {[%emt 0:00:30]} Rec6 {[%emt 0:00:30]} 47. Kg2 {[%emt 0:00:30]} Qe5 {[%emt 0:00:30]} 48. Re2 {[%emt 0:00:30]} Qd5+ {[%emt 0:00:30]} 49. Qxd5 {[%emt 0:00:30]} Rxd5 {[%emt 0:00:30]} 50. Rec2 {[%emt 0:00:30]} Rdc5 {[%emt 0:00:30]} 51. Re1 {[%emt 0:00:30]} g5 {[%emt 0:00:30]} 52. Re3 {[%emt 0:00:30]} f5 {[%emt 0:00:30]} 53. f3 {[%emt 0:00:30]} Kf6 {[%emt 0:00:30]} 54. Kf2 {[%emt 0:00:30]} Rc4 {[%emt 0:00:30]} 55. Rd3 {[%emt 0:00:30]} h5 {[%emt 0:00:30]} 56. Re3 {[%emt 0:00:30]} h4 {[%emt 0:00:30]} 57. Kg2 {[%emt 0:00:30]} Kg6 {[%emt 0:00:30]} 58. Rd3 {[%emt 0:00:30]} Kh5 {[%emt 0:00:30]} 59. Re3 {[%emt 0:00:30]} R6c5 {[%emt 0:00:30]} 60. Rd3 {[%emt 0:00:30]} g4 {[%emt 0:00:30]} 61. fxg4+ {[%emt 0:00:30]} Kxg4 {[%emt 0:00:30]} 62. Rf3 {[%emt 0:00:30]} h3+ {[%emt 0:00:30]} 63. Kf2 {[%emt 0:00:30]} f4 {[%emt 0:00:30]} 64. Ke2 {[%emt 0:00:30]} Re4+ {[%emt 0:00:30]} 65. Kf2 {[%emt 0:00:30]} Rf5 {[%emt 0:00:30]} 66. gxf4 {[%emt 0:00:30]} Rexf4 {[%emt 0:00:30]} 67. Rxf4+ {[%emt 0:00:30]} Rxf4+ {[%emt 0:00:30]} 68. Ke3 {[%emt 0:00:30]} Rf1 {[%emt 0:00:30]} 69. Rxc3 {[%emt 0:00:30]} Rf3+ {[%emt 0:00:30]} 70. Kd2 {[%emt 0:00:30]} Rf2+ {[%emt 0:00:30]} 71. Ke1 {[%emt 0:00:30]} Rxh2 {[%emt 0:00:30]} 72. Kf1 {[%emt 0:00:30]} Rg2 {[%emt 0:00:30]} 73. Ra3 {[%emt 0:00:30]} Kh4 {[%emt 0:00:30]} 74. Ra8 {[%emt 0:00:30]} Kg3 {[%emt 0:00:30]} 75. Rg8+ {[%emt 0:00:30]} Kh2 {[%emt 0:00:30]} 76. Rh8 {[%emt 0:00:30]} Rg5 {[%emt 0:00:30]} 77. Kf2 {[%emt 0:00:30]} Rf5+ {[%emt 0:00:30]} 78. Ke2 {[%emt 0:00:30]} Kg2 {[%emt 0:00:30]} 79. Rg8+ {[%emt 0:00:30]} Kh1 {[%emt 0:00:30]} 80. Rh8 {[%emt 0:00:30]} h2 {[%emt 0:00:30]} 81. Rg8 {[%emt 0:00:30]} 1/2-1/2

[Event "Fall IM Norm Invitational 2020"]
[Site "Charlotte"]
[Date "2020.10.02"]
[Round "3.3"]
[White "Francisco, Richard"]
[Black "Matros, Alexander"]
[Result "0-1"]
[ECO "A20"]
[WhiteElo "2303"]
[BlackElo "2417"]
[Annotator "ChessBase"]
[PlyCount "118"]
[EventDate "2020.09.30"]
[EventType "tourn"]
[EventCountry "USA"]
[SourceTitle "playchess.com"]
[Source "ChessBase"]
[SourceQuality "1"]
[TimeControl "5400+30"]

1. c4 {[%emt 1:30:30]} e5 {[%emt 1:30:30]} 2. g3 {[%emt 0:00:30]} h5 {[%emt 0:00:30]} 3. h4 {[%emt 0:00:30]} Nc6 {[%emt 0:00:30]} 4. Nc3 {[%emt 0:00:30]} Bc5 {[%emt 0:00:30]} 5. Bg2 {[%emt 0:00:30]} d6 {[%emt 0:00:30]} 6. e3 {[%emt 0:00:30]} Nge7 {[%emt 0:00:30]} 7. Nge2 {[%emt 0:00:30]} Bg4 {[%emt 0:00:30]} 8. a3 {[%emt 0:00:30]} a5 {[%emt 0:00:30]} 9. b3 {[%emt 0:00:30]} O-O {[%emt 0:00:30]} 10. Bb2 {[%emt 0:00:30]} Qd7 {[%emt 0:00:30]} 11. Qc2 {[%emt 0:00:30]} Rae8 {[%emt 0:00:30]} 12. Ne4 {[%emt 0:00:30]} f6 {[%emt 0:00:30]} 13. N2c3 {[%emt 0:00:30]} Nd8 {[%emt 0:00:30]} 14. Nxc5 {[%emt 0:00:30]} dxc5 {[%emt 0:00:30]} 15. d3 {[%emt 0:00:30]} Kh8 {[%emt 0:00:30]} 16. Ne4 {[%emt 0:00:30]} b6 {[%emt 0:00:30]} 17. O-O {[%emt 0:00:30]} Ndc6 {[%emt 0:00:30]} 18. Kh2 {[%emt 0:00:30]} Rd8 {[%emt 0:00:30]} 19. f3 {[%emt 0:00:30]} Be6 {[%emt 0:00:30]} 20. Rad1 {[%emt 0:00:30]} Kg8 {[%emt 0:00:30]} 21. Qe2 {[%emt 0:00:30]} Qe8 {[%emt 0:00:30]} 22. Nf2 {[%emt 0:00:30]} Nf5 {[%emt 0:00:30]} 23. f4 {[%emt 0:00:30]} exf4 {[%emt 0:00:30]} 24. gxf4 {[%emt 0:00:30]} Nce7 {[%emt 0:00:30]} 25. Bh3 {[%emt 0:00:30]} Bc8 {[%emt 0:00:30]} 26. e4 {[%emt 0:00:30]} Nxh4 {[%emt 0:00:30]} 27. Rg1 {[%emt 0:00:30]} Nc6 {[%emt 0:00:30]} 28. Bxc8 {[%emt 0:00:30]} Rxc8 {[%emt 0:00:30]} 29. Nh3 {[%emt 0:00:30]} Nf5 {[%emt 0:00:30]} 30. Qg2 {[%emt 0:00:30]} Nce7 {[%emt 0:00:30]} 31. exf5 {[%emt 0:00:30]} Rf7 {[%emt 0:00:30]} 32. Rge1 {[%emt 0:00:30]} Qd7 {[%emt 0:00:30]} 33. d4 {[%emt 0:00:30]} cxd4 {[%emt 0:00:30]} 34. Rxd4 {[%emt 0:00:30]} Qxf5 {[%emt 0:00:30]} 35. Qe4 {[%emt 0:00:30]} Qxe4 {[%emt 0:00:30]} 36. Rexe4 {[%emt 0:00:30]} Kf8 {[%emt 0:00:30]} 37. Rd2 {[%emt 0:00:30]} Nf5 {[%emt 0:00:30]} 38. Rd5 {[%emt 0:00:30]} g6 {[%emt 0:00:30]} 39. Nf2 {[%emt 0:00:30]} Ne7 {[%emt 0:00:30]} 40. Rd2 {[%emt 0:00:30]} Nf5 {[%emt 0:00:30]} 41. Re6 {[%emt 0:00:30]} Re8 {[%emt 0:00:30]} 42. Rxe8+ {[%emt 0:00:30]} Kxe8 {[%emt 0:00:30]} 43. Ne4 {[%emt 0:00:30]} Ne3 {[%emt 0:00:30]} 44. Re2 {[%emt 0:00:30]} Ng4+ {[%emt 0:00:30]} 45. Kg3 {[%emt 0:00:30]} Kd7 {[%emt 0:00:30]} 46. Nf2 {[%emt 0:00:30]} Nh6 {[%emt 0:00:30]} 47. Kf3 {[%emt 0:00:30]} g5 {[%emt 0:00:30]} 48. Rd2+ {[%emt 0:00:30]} Ke6 {[%emt 0:00:30]} 49. Re2+ {[%emt 0:00:30]} Kf5 {[%emt 0:00:30]} 50. fxg5 {[%emt 0:00:30]} fxg5 {[%emt 0:00:30]} 51. Re5+ {[%emt 0:00:30]} Kg6+ 52. Ke2 {[%emt 0:00:30]} h4 {[%emt 0:01:00]} 53. Ne4 {[%emt 0:00:30]} Nf5 {[%emt 0:00:30]} 54. Re6+ {[%emt 0:00:30]} Kh5 {[%emt 0:00:30]} 55. Nf6+ {[%emt 0:00:30]} Kg6 {[%emt 0:00:30]} 56. Kf3 {[%emt 0:00:30]} Ng7 {[%emt 0:00:30]} 57. Rc6 {[%emt 0:00:30]} Ne8 {[%emt 0:00:30]} 58. Ke4 {[%emt 0:00:30]} Nxf6+ {[%emt 0:00:30]} 59. Ke5 {[%emt 0:00:30]} Re7+ {[%emt 0:00:30]} 0-1

[Event "Fall IM Norm Invitational 2020"]
[Site "Charlotte"]
[Date "2020.10.02"]
[Round "3.4"]
[White "Adamson, Robby"]
[Black "Velikanov, Alexander"]
[Result "1/2-1/2"]
[ECO "B22"]
[WhiteElo "2235"]
[BlackElo "2274"]
[Annotator "ChessBase"]
[PlyCount "22"]
[EventDate "2020.09.30"]
[EventType "tourn"]
[EventCountry "USA"]
[SourceTitle "playchess.com"]
[Source "ChessBase"]
[SourceQuality "1"]
[TimeControl "5400+30"]

1. e4 {[%emt 1:30:30]} c5 {[%emt 1:30:30]} 2. Nf3 {[%emt 0:00:30]} Nc6 {[%emt 0:00:30]} 3. c3 {[%emt 0:00:30]} d5 {[%emt 0:00:30]} 4. exd5 {[%emt 0:00:30]} Qxd5 {[%emt 0:00:30]} 5. d4 {[%emt 0:00:30]} Bf5 {[%emt 0:00:30]} 6. Be3 {[%emt 0:00:30]} cxd4 {[%emt 0:00:30]} 7. Nxd4 {[%emt 0:00:30]} Nf6 {[%emt 0:00:30]} 8. Nxf5 {[%emt 0:00:30]} Qxf5 {[%emt 0:00:30]} 9. Bd3 {[%emt 0:00:30]} Qd5 {[%emt 0:00:30]} 10. O-O {[%emt 0:00:30]} O-O-O {[%emt 0:00:30]} 11. Be2 {[%emt 0:00:30]} Qxd1 {[%emt 0:00:30]} 1/2-1/2

[Event "Fall IM Norm Invitational 2020"]
[Site "Charlotte"]
[Date "2020.10.02"]
[Round "3.5"]
[White "Vivekananthan, Anish"]
[Black "Li, Eric"]
[Result "1-0"]
[ECO "B53"]
[WhiteElo "2239"]
[BlackElo "2334"]
[Annotator "ChessBase"]
[PlyCount "109"]
[EventDate "2020.09.30"]
[EventType "tourn"]
[EventCountry "USA"]
[SourceTitle "playchess.com"]
[Source "ChessBase"]
[SourceQuality "1"]
[TimeControl "5400+30"]

1. e4 {[%emt 1:30:30]} c5 {[%emt 1:30:30]} 2. Nf3 {[%emt 0:00:30]} d6 {[%emt 0:00:30]} 3. d4 {[%emt 0:00:30]} cxd4 {[%emt 0:00:30]} 4. Qxd4 {[%emt 0:00:30]} Nf6 {[%emt 0:00:30]} 5. Nc3 {[%emt 0:00:30]} Nc6 {[%emt 0:00:30]} 6. Bb5 {[%emt 0:00:30]} Bd7 {[%emt 0:00:30]} 7. Bxc6 {[%emt 0:00:30]} Bxc6 {[%emt 0:00:30]} 8. Bg5 {[%emt 0:00:30]} Nd7 {[%emt 0:00:30]} 9. Be3 {[%emt 0:00:30]} e5 {[%emt 0:00:30]} 10. Qd3 {[%emt 0:00:30]} Be7 {[%emt 0:00:30]} 11. Nd2 {[%emt 0:00:30]} O-O {[%emt 0:00:30]} 12. O-O {[%emt 0:00:30]} Qb8 {[%emt 0:00:30]} 13. Nc4 {[%emt 0:00:30]} Rd8 {[%emt 0:00:30]} 14. Rad1 {[%emt 0:00:30]} h6 {[%emt 0:00:30]} 15. Bc1 {[%emt 0:00:30]} Nc5 {[%emt 0:00:30]} 16. Qf3 {[%emt 0:00:30]} Bf8 {[%emt 0:00:30]} 17. Ne3 {[%emt 0:00:30]} b5 {[%emt 0:00:30]} 18. Ncd5 {[%emt 0:00:30]} Qb7 {[%emt 0:00:30]} 19. Nf5 {[%emt 0:00:30]} Kh8 {[%emt 0:00:30]} 20. Rfe1 {[%emt 0:00:30]} Rac8 {[%emt 0:00:30]} 21. Qg4 {[%emt 0:00:30]} Ne6 {[%emt 0:00:30]} 22. Rd3 {[%emt 0:00:30]} Bxd5 {[%emt 0:00:30]} 23. exd5 {[%emt 0:00:30]} Rc4 {[%emt 0:00:30]} 24. Qd1 {[%emt 0:00:30]} Nf4 {[%emt 0:00:30]} 25. Bxf4 {[%emt 0:00:30]} Rxf4 {[%emt 0:00:30]} 26. Ne3 {[%emt 0:00:30]} g6 {[%emt 0:00:30]} 27. g3 {[%emt 0:00:30]} Ra4 {[%emt 0:00:30]} 28. a3 {[%emt 0:00:30]} Bg7 {[%emt 0:00:30]} 29. Rb3 {[%emt 0:00:30]} Ra6 {[%emt 0:00:30]} 30. c4 {[%emt 0:00:30]} Rb6 {[%emt 0:00:30]} 31. Rxb5 {[%emt 0:00:30]} Rxb5 {[%emt 0:00:30]} 32. cxb5 {[%emt 0:00:30]} Qxb5 {[%emt 0:00:30]} 33. Qc2 {[%emt 0:00:30]} Rb8 {[%emt 0:00:30]} 34. b4 {[%emt 0:00:30]} a5 {[%emt 0:00:30]} 35. Rb1 {[%emt 0:00:30]} Qb7 {[%emt 0:00:30]} 36. Qc6 {[%emt 0:00:30]} e4 {[%emt 0:00:30]} 37. Nc4 {[%emt 0:00:30]} axb4 {[%emt 0:00:30]} 38. Rxb4 {[%emt 0:00:30]} Qa7 {[%emt 0:00:30]} 39. Rxb8+ {[%emt 0:00:30]} Qxb8 {[%emt 0:00:30]} 40. Qxd6 {[%emt 0:00:30]} Qb1+ {[%emt 0:00:30]} 41. Kg2 {[%emt 0:00:30]} Qd1 {[%emt 0:00:30]} 42. Ne3 Qf3+ {[%emt 0:00:30]} 43. Kg1 g5 {[%emt 0:00:30]} 44. Qb4 {[%emt 0:01:30]} f5 {[%emt 0:00:30]} 45. d6 {[%emt 0:00:30]} f4 {[%emt 0:00:30]} 46. d7 fxe3 {[%emt 0:00:30]} 47. d8=Q+ {[%emt 0:01:00]} Kh7 {[%emt 0:00:30]} 48. Qe1 {[%emt 0:00:30]} Bc3 {[%emt 0:00:30]} 49. Qxe3 {[%emt 0:00:30]} Qxe3 {[%emt 0:00:30]} 50. fxe3 {[%emt 0:00:30]} Kg6 {[%emt 0:00:30]} 51. Qd5 {[%emt 0:00:30]} Be1 {[%emt 0:00:30]} 52. Qxe4+ {[%emt 0:00:30]} Kh5 {[%emt 0:00:30]} 53. Kg2 {[%emt 0:00:30]} Bc3 {[%emt 0:00:30]} 54. Qf5 {[%emt 0:00:30]} Bd4 {[%emt 0:00:30]} 55. Qf7+ {[%emt 0:00:30]} 1-0